fUST/lending_fUST_20250811
["ID","MTS","AMOUNT","RATE_DAILY","PERIOD"]
[378541046,1754908260532,-460.0,0.00021278,2]
[378541047,1754908260541,-460.0,0.00021278,2]
[378541048,1754908260551,-964.35,0.00021278,2]
[378541049,1754908260560,-460.0,0.00021278,2]
[378541050,1754908260570,-454.81181067,0.00021278,2]
[378541051,1754908260579,-460.0,0.00021278,2]
[378541052,1754908260589,-460.0,0.00021278,2]
[378541053,1754908260598,-460.0,0.00021278,2]
[378541054,1754908260608,-460.0,0.00021278,2]
[378541055,1754908260618,-460.0,0.00021278,2]
[378541056,1754908260627,-460.0,0.00021278,2]
[378541057,1754908260637,-494.32210816,0.00021278,2]
[378541058,1754908260647,-460.0,0.00021278,2]
[378541059,1754908260657,-940.53,0.00021278,2]
[378541060,1754908260666,-460.0,0.00021278,2]
[378541061,1754908260676,-460.0,0.00021278,2]
[378541062,1754908260685,-460.0,0.00021278,2]
[378541063,1754908260695,-460.0,0.00021278,2]
[378541064,1754908260704,-471.50981979,0.00021278,2]
[378541065,1754908260715,-1026.17,0.00021278,2]
[378541066,1754908260724,-460.0,0.00021278,2]
[378541067,1754908260733,-460.0,0.00021278,2]
[378541068,1754908260743,-500.0,0.00021278,2]
[378541069,1754908260752,-460.0,0.00021278,2]
[378541070,1754908260762,-554.2849335,0.00021278,2]
[378541071,1754908260771,-460.0,0.00021278,2]
[378541072,1754908260781,-461.61370413,0.00021278,2]
[378541073,1754908260790,-461.32002932,0.00021278,2]
[378541074,1754908260800,-460.0,0.00021278,2]
[378541075,1754908260809,-460.0,0.00021278,2]
[378541076,1754908260819,-460.0,0.00021278,2]
[378541077,1754908260829,-862.5,0.00021278,2]
[378541078,1754908260838,-460.0,0.00021278,2]
[378541079,1754908260848,-460.0,0.00021278,2]
[378541080,1754908260858,-460.0,0.00021278,2]
[378541081,1754908260868,-460.0,0.00021278,2]
[378541082,1754908260878,-460.0,0.00021278,2]
[378541083,1754908260887,-506.33,0.00021278,2]
[378541084,1754908260897,-460.0,0.00021278,2]
[378541085,1754908260907,-460.0,0.00021278,2]
[378541086,1754908260917,-463.54142439,0.00021278,2]
[378541087,1754908260926,-460.0,0.00021278,2]
[378541088,1754908260936,-460.0,0.00021278,2]
[378541089,1754908260945,-460.0,0.00021278,2]
[378541090,1754908261061,-460.0,0.00021278,2]
[378541091,1754908261071,-541.67,0.00021278,2]
[378541092,1754908261081,-460.0,0.00021278,2]
[378541093,1754908261091,-460.0,0.00021278,2]
[378541094,1754908261100,-460.0,0.00021278,2]
[378541095,1754908261110,-460.0,0.00021278,2]
[378541096,1754908261120,-460.0,0.00021278,2]
[378541097,1754908261129,-460.0,0.00021278,2]
[378541098,1754908261139,-460.0,0.00021278,2]
[378541099,1754908261150,-460.0,0.00021278,2]
[378541100,1754908261159,-460.0,0.00021278,2]
[378541101,1754908261169,-460.0,0.00021278,2]
[378541102,1754908261179,-599.36,0.00021278,2]
[378541103,1754908261189,-460.0,0.00021278,2]
[378541104,1754908261198,-460.0,0.00021278,2]
[378541105,1754908261208,-602.8,0.00021278,2]
[378541106,1754908261217,-460.0,0.00021278,2]
[378541107,1754908261227,-460.0,0.00021278,2]
[378541108,1754908261237,-460.0,0.00021278,2]
[378541109,1754908261247,-460.0,0.00021278,2]
[378541110,1754908261256,-460.0,0.00021278,2]
[378541111,1754908261266,-460.0,0.00021278,2]
[378541112,1754908261275,-460.0,0.00021278,2]
[378541113,1754908261285,-567.57,0.00021278,2]
[378541114,1754908261295,-460.0,0.00021278,2]
[378541115,1754908261304,-853.0,0.00021278,2]
[378541116,1754908261313,-460.0,0.00021278,2]
[378541117,1754908261327,-460.0,0.00021278,2]
[378541118,1754908261336,-460.0,0.00021278,2]
[378541119,1754908261346,-1715.38,0.00021278,2]
[378541120,1754908261356,-460.0,0.00021278,2]
[378541121,1754908261366,-460.0,0.00021278,2]
[378541122,1754908261376,-460.0,0.00021278,2]
[378541123,1754908261386,-460.0,0.00021278,2]
[378541124,1754908261398,-460.0,0.00021278,2]
[378541125,1754908261408,-460.0,0.00021278,2]
[378541126,1754908261417,-460.0,0.00021278,2]
[378541127,1754908261427,-460.0,0.00021278,2]
[378541128,1754908261437,-460.0,0.00021278,2]
[378541129,1754908261447,-164.93371486,0.00021278,2]
[378541130,1754908261457,-461.86386451,0.00021278,2]
[378541131,1754908261467,-460.0,0.00021278,2]
[378541132,1754908261477,-460.0,0.00021278,2]
[378541133,1754908261486,-460.0,0.00021278,2]
[378541134,1754908261496,-460.0,0.00021278,2]
[378541135,1754908261506,-1777.53,0.00021278,2]
[378541136,1754908261516,-563.56,0.00021278,2]
[378541137,1754908261525,-460.0,0.00021278,2]
[378541138,1754908261535,-460.0,0.00021278,2]
[378541139,1754908261544,-460.0,0.00021278,2]
[378541140,1754908261554,-460.0,0.00021278,2]
[378541141,1754908261564,-469.26,0.00021278,2]
[378541142,1754908261574,-460.0,0.00021278,2]
[378541143,1754908261584,-1144.23,0.00021278,2]
[378541144,1754908261594,-460.0,0.00021278,2]
[378541145,1754908261604,-460.0,0.00021278,2]
[378541146,1754908261614,-460.0,0.00021278,2]
[378541147,1754908261623,-570.86145266,0.00021278,2]
[378541148,1754908261634,-460.0,0.00021278,2]
[378541149,1754908261644,-460.0,0.00021278,2]
[378541150,1754908261654,-460.0,0.00021278,2]
[378541151,1754908261663,-461.08057795,0.00021278,2]
[378541152,1754908261673,-690.0,0.00021278,2]
[378541153,1754908261683,-460.0,0.00021278,2]
[378541154,1754908261692,-580.00000001,0.00021278,2]
[378541155,1754908261702,-460.0,0.00021278,2]
[378541156,1754908261712,-463.68,0.00021278,2]
[378541157,1754908261722,-960.43,0.00021278,2]
[378541158,1754908261731,-460.0,0.00021278,2]
[378541159,1754908261741,-460.0,0.00021278,2]
[378541160,1754908261750,-482.14827565,0.00021278,2]
[378541161,1754908261760,-460.0,0.00021278,2]
[378541162,1754908261769,-460.0,0.00021278,2]
[378541163,1754908261779,-460.0,0.00021278,2]
[378541164,1754908261789,-460.0,0.00021278,2]
[378541165,1754908261798,-460.0,0.00021278,2]
[378541166,1754908261808,-460.0,0.00021278,2]
[378541167,1754908261817,-460.0,0.00021278,2]
[378541168,1754908261827,-460.0,0.00021278,2]
[378541169,1754908261836,-616.43,0.00021278,2]
[378541170,1754908261847,-460.0,0.00021278,2]
[378541171,1754908261859,-460.0,0.00021278,2]
[378541172,1754908261879,-460.0,0.00021278,2]
[378541173,1754908261897,-460.0,0.00021278,2]
[378541174,1754908261916,-460.0,0.00021278,2]
[378541175,1754908261935,-599.29,0.00021278,2]
[378541176,1754908261954,-460.0,0.00021278,2]
[378541177,1754908261971,-460.0,0.00021278,2]
[378541178,1754908261990,-538.36,0.00021278,2]
[378541179,1754908262005,-539.26,0.00021278,2]
[378541180,1754908262021,-460.0,0.00021278,2]
[378541181,1754908262039,-460.0,0.00021278,2]
[378541182,1754908262060,-518.47,0.00021282,2]
[378541183,1754908262073,-460.0,0.00021282,2]
[378541184,1754908262092,-5889.12,0.00021282,2]
[378541185,1754908262108,-494.5,0.00021282,2]
[378541186,1754908262125,-518.16,0.00021282,2]
[378541187,1754908262138,-2433.67,0.00021283,2]
[378541188,1754908262154,-1951.94,0.00021283,2]
[378541189,1754908262169,-1044.87,0.00021283,2]
[378541190,1754908262184,-460.0,0.00021283,2]
[378541191,1754908262200,-1095.54,0.00021283,2]
[378541192,1754908262220,-460.0,0.00021283,2]
[378541193,1754908262243,-2948.92,0.00021283,2]
[378541194,1754908262264,-460.0,0.00021283,2]
[378541195,1754908262280,-863.42,0.00021289,2]
[378541196,1754908262294,-461.69432479,0.00021289,2]
[378541197,1754908262308,-460.0,0.00021289,2]
[378541198,1754908262327,-460.0,0.00021289,2]
[378541199,1754908262350,-460.0,0.00021289,2]
[378541200,1754908262363,-460.0,0.00021289,2]
[378541201,1754908262378,-460.0,0.00021289,2]
[378541202,1754908262392,-460.0,0.00021289,2]
[378541203,1754908262407,-576.35,0.00021289,2]
[378541204,1754908262422,-460.0,0.00021289,2]
[378541205,1754908262436,-460.0,0.00021289,2]
[378541206,1754908262451,-460.0,0.00021289,2]
[378541207,1754908262465,-1280.16,0.00021289,2]
[378541208,1754908262479,-460.0,0.00021289,2]
[378541209,1754908262493,-460.0,0.00021289,2]
[378541210,1754908262507,-460.0,0.00021289,2]
[378541211,1754908262521,-460.0,0.00021289,2]
[378541212,1754908262535,-686.08,0.00021289,2]
[378541213,1754908262549,-8024.33,0.00021289,2]
[378541214,1754908262566,-2264.28,0.00021289,2]
[378541215,1754908262581,-3610.17,0.0002129,2]
[378541216,1754908262595,-460.0,0.0002129,2]
[378541217,1754908262610,-579.92,0.0002129,2]
[378541218,1754908262624,-151.0,0.000213,3]
[378541219,1754908262638,-798.23,0.00021312,2]
[378541220,1754908262652,-460.0,0.00021312,2]
[378541221,1754908262666,-460.0,0.00021312,2]
[378541222,1754908262680,-460.0,0.00021312,2]
[378541223,1754908262695,-460.0,0.00021312,2]
[378541224,1754908262710,-361.89782764,0.00021312,2]
[378541225,1754908262724,-460.0,0.00021312,2]
[378541226,1754908262738,-460.0,0.00021312,2]
[378541227,1754908262753,-460.0,0.00021312,2]
[378541228,1754908262768,-460.0,0.00021312,2]
[378541229,1754908262783,-460.0,0.00021312,2]
[378541230,1754908262797,-3081.39,0.00021312,2]
[378541231,1754908262813,-1000.0,0.00021321,2]
[378541232,1754908262827,-1000.0,0.00021321,2]
[378541233,1754908262843,-1000.0,0.00021321,2]
[378541234,1754908262858,-1000.0,0.00021321,2]
[378541235,1754908262873,-1000.0,0.00021321,2]
[378541236,1754908262888,-1000.0,0.00021321,2]
[378541237,1754908262902,-1113.81959935,0.00021321,2]
[378541238,1754908262917,-1000.0,0.00021321,2]
[378541239,1754908262931,-1000.0,0.00021321,2]
[378541240,1754908262946,-1000.0,0.00021321,2]
[378541241,1754908262961,-1000.0,0.00021321,2]
[378541242,1754908262977,-1000.0,0.00021321,2]
[378541243,1754908262992,-671.82378502,0.00021321,2]
[378541244,1754908263006,-1000.0,0.00021321,2]
[378541245,1754908263023,-1000.0,0.00021321,2]
[378541246,1754908263038,-1015.7482093,0.00021321,2]
[378541247,1754908263053,-1000.0,0.00021321,2]
[378541248,1754908263068,-1000.0,0.00021321,2]
[378541249,1754908263085,-694.98735988,0.00021321,2]
[378541250,1754908263101,-1000.0,0.00021321,2]
[378541251,1754908263117,-1000.0,0.00021321,2]
[378541252,1754908263133,-948.3863004,0.00021321,2]
[378541253,1754908263309,-349.32952212,0.00021321,2]
[378541254,1754908263320,-1000.0,0.00021321,2]
[378541255,1754908263331,-1000.0,0.00021321,2]
[378541256,1754908263340,-1000.0,0.00021321,2]
[378541257,1754908263350,-1000.0,0.00021321,2]
[378541258,1754908263359,-1000.0,0.00021321,2]
[378541259,1754908263368,-1000.0,0.00021321,2]
[378541260,1754908263378,-1000.0,0.00021321,2]
[378541261,1754908263388,-1000.0,0.00021321,2]
[378541262,1754908263398,-1000.0,0.00021321,2]
[378541263,1754908263410,-6406.99,0.0002136,2]
[378541264,1754908263426,-198.44932677,0.00021365,2]
[378541265,1754908263435,-460.0,0.00021365,2]
[378541266,1754908263445,-460.0,0.00021365,2]
[378541267,1754908263454,-697.35,0.00021365,2]
[378541268,1754908263463,-1836.41,0.00021365,2]
[378541269,1754908263473,-349.46136917,0.00021365,2]
[378541270,1754908263483,-759.64,0.00021365,2]
[378541271,1754908263492,-460.0,0.00021365,2]
[378541272,1754908263502,-460.0,0.00021365,2]
[378541273,1754908263511,-478.30018914,0.00021365,2]
[378541274,1754908263520,-460.0,0.00021366,2]
[378541275,1754908263530,-460.0,0.00021366,2]
[378541276,1754908263539,-1220.09,0.00021366,2]
[378541277,1754908263549,-790.34,0.00021366,2]
[378541278,1754908263558,-460.0,0.00021366,2]
[378541279,1754908263568,-460.0,0.00021366,2]
[378541280,1754908263577,-4002.66,0.00021366,2]
[378541281,1754908263586,-460.0,0.00021366,2]
[378541282,1754908263596,-723.0,0.00021366,2]
[378541283,1754908263605,-460.0,0.00021366,2]
[378541284,1754908263615,-4169.66,0.00021366,2]
[378541285,1754908263624,-902.32,0.00021366,2]
[378541286,1754908263634,-460.0,0.00021366,2]
[378541287,1754908263644,-500.0,0.00021367,2]
[378541288,1754908263653,-744.59,0.00021367,2]
[378541289,1754908263663,-460.0,0.00021367,2]
[378541290,1754908263673,-534.59,0.00021367,2]
[378541291,1754908263683,-465.29365602,0.00021367,2]
[378541292,1754908263693,-604.62,0.00021367,2]
[378541293,1754908263702,-460.0,0.00021367,2]
[378541294,1754908263712,-460.0,0.00021367,2]
[378541295,1754908263730,-460.0,0.00021367,2]
[378541296,1754908263740,-460.0,0.00021367,2]
[378541297,1754908263750,-460.0,0.00021367,2]
[378541298,1754908263759,-843.44,0.00021367,2]
[378541299,1754908263769,-460.0,0.00021367,2]
[378541300,1754908263779,-727.52,0.00021367,2]
[378541301,1754908263788,-1485.25,0.00021367,2]
[378541302,1754908263797,-460.0,0.00021367,2]
[378541303,1754908263806,-3006.63,0.00021367,2]
[378541304,1754908263817,-460.0,0.00021367,2]
[378541305,1754908263827,-460.0,0.00021367,2]
[378541306,1754908263836,-460.0,0.00021367,2]
[378541307,1754908263846,-460.0,0.00021367,2]
[378541308,1754908263855,-460.0,0.00021367,2]
[378541309,1754908263865,-575.09,0.00021367,2]
[378541310,1754908263875,-460.0,0.00021367,2]
[378541311,1754908263884,-460.0,0.00021367,2]
[378541312,1754908263894,-460.0,0.00021367,2]
[378541313,1754908263903,-498.6,0.00021367,2]
[378541314,1754908263912,-653.6,0.00021367,2]
[378541315,1754908263922,-562.63,0.00021367,2]
[378541316,1754908263931,-729.09,0.00021367,2]
[378541317,1754908263941,-999.16,0.00021367,2]
[378541318,1754908263950,-697.2,0.00021367,2]
[378541319,1754908263959,-460.0,0.00021367,2]
[378541320,1754908263969,-2445.44,0.00021367,2]
[378541321,1754908263979,-460.0,0.00021367,2]
[378541322,1754908263988,-460.0,0.00021367,2]
[378541323,1754908263998,-1578.08,0.00021367,2]
[378541324,1754908264008,-1235.34,0.00021367,2]
[378541325,1754908264018,-478.77,0.00021367,2]
[378541326,1754908264027,-729.8,0.00021367,2]
[378541327,1754908264038,-939.63,0.00021367,2]
[378541328,1754908264049,-1533.99,0.00021367,2]
[378541329,1754908264060,-460.0,0.00021367,2]
[378541330,1754908264070,-1726.96,0.00021367,2]
[378541331,1754908264079,-820.36,0.00021367,2]
[378541332,1754908264088,-460.0,0.00021367,2]
[378541333,1754908264098,-517.65,0.00021367,2]
[378541334,1754908264108,-1078.47,0.00021367,2]
[378541335,1754908264118,-460.0,0.00021367,2]
[378541336,1754908264127,-460.0,0.00021367,2]
[378541337,1754908264137,-573.72,0.00021367,2]
[378541338,1754908264146,-170.88840118,0.00021367,2]
[378541339,1754908264155,-460.0,0.00021368,2]
[378541340,1754908264165,-460.0,0.00021368,2]
[378541341,1754908264176,-460.0,0.00021368,2]
[378541342,1754908264185,-691.37,0.00021368,2]
[378541343,1754908264194,-460.0,0.00021368,2]
[378541344,1754908264204,-460.0,0.00021368,2]
[378541345,1754908264215,-460.0,0.00021368,2]
[378541346,1754908264226,-725.58,0.00021368,2]
[378541347,1754908264236,-460.0,0.00021368,2]
[378541348,1754908264245,-476.81930231,0.00021368,2]
[378541349,1754908264255,-460.0,0.00021368,2]
[378541350,1754908264265,-460.0,0.00021368,2]
[378541351,1754908264274,-766.22,0.00021368,2]
[378541352,1754908264284,-460.0,0.00021368,2]
[378541353,1754908264293,-460.0,0.00021368,2]
[378541354,1754908264303,-504.94549371,0.00021368,2]
[378541355,1754908264312,-809.46,0.00021368,2]
[378541356,1754908264327,-460.0,0.00021368,2]
[378541357,1754908264337,-460.08,0.00021368,2]
[378541358,1754908264347,-469.61584375,0.00021368,2]
[378541359,1754908264356,-460.0,0.00021368,2]
[378541360,1754908264366,-460.0,0.00021368,2]
[378541361,1754908264375,-460.0,0.00021453,2]
[378541362,1754908264386,-296.63286997,0.00021453,2]
[378541363,1754908264395,-460.0,0.00021453,2]
[378541364,1754908264406,-460.0,0.00021453,2]
[378541365,1754908264415,-460.0,0.00021453,2]
[378541366,1754908264425,-541.5,0.00021453,2]
[378541367,1754908264434,-460.0,0.00021453,2]
[378541368,1754908264444,-460.0,0.00021453,2]
[378541369,1754908264453,-460.0,0.00021453,2]
[378541370,1754908264462,-460.0,0.00021453,2]
[378541371,1754908264472,-949.52,0.00021453,2]
[378541372,1754908264481,-460.0,0.00021453,2]
[378541373,1754908264491,-460.0,0.00021453,2]
[378541374,1754908264500,-460.0,0.00021453,2]
[378541375,1754908264511,-460.0,0.00021453,2]
[378541376,1754908264520,-460.0,0.00021453,2]
[378541377,1754908264529,-460.0,0.00021453,2]
[378541378,1754908264540,-460.0,0.00021453,2]
[378541379,1754908264549,-460.0,0.00021453,2]
[378541380,1754908264559,-505.1,0.00021453,2]
[378541381,1754908264568,-843.8,0.00021453,2]
[378541382,1754908264578,-460.0,0.00021453,2]
[378541383,1754908264588,-460.0,0.00021453,2]
[378541384,1754908264598,-1175.28,0.00021453,2]
[378541385,1754908264607,-970.42,0.00021453,2]
[378541386,1754908264617,-460.0,0.00021453,2]
[378541387,1754908264627,-480.19,0.00021453,2]
[378541388,1754908264636,-472.21973355,0.00021453,2]
[378541389,1754908264645,-460.0,0.00021453,2]
[378541390,1754908264655,-796.12,0.00021453,2]
[378541391,1754908264665,-460.0,0.00021453,2]
[378541392,1754908264674,-460.0,0.00021453,2]
[378541393,1754908264683,-460.0,0.00021453,2]
[378541394,1754908264692,-1092.07,0.00021453,2]
[378541395,1754908264702,-460.0,0.00021453,2]
[378541396,1754908264713,-460.0,0.00021453,2]
[378541397,1754908264723,-460.0,0.00021453,2]
[378541398,1754908264732,-1313.41,0.00021453,2]
[378541399,1754908264742,-1925.8,0.00021453,2]
[378541400,1754908264752,-612.85,0.00021453,2]
[378541401,1754908264761,-460.0,0.00021453,2]
[378541402,1754908264770,-460.0,0.00021453,2]
[378541403,1754908264780,-460.0,0.00021453,2]
[378541404,1754908264790,-499.72968896,0.00021453,2]
[378541405,1754908264799,-460.0,0.00021453,2]
[378541406,1754908264810,-460.0,0.00021453,2]
[378541407,1754908264820,-460.0,0.00021453,2]
[378541408,1754908264829,-460.0,0.00021453,2]
[378541409,1754908264839,-460.0,0.00021453,2]
[378541410,1754908264849,-460.0,0.00021453,2]
[378541411,1754908264859,-460.0,0.00021453,2]
[378541412,1754908264869,-460.49,0.00021453,2]
[378541413,1754908264881,-692.1,0.00021453,2]
[378541414,1754908264890,-460.0,0.00021453,2]
[378541415,1754908264901,-994.38,0.00021453,2]
[378541416,1754908264910,-1226.8,0.00021453,2]
[378541417,1754908264921,-460.0,0.00021453,2]
[378541418,1754908264931,-460.0,0.00021453,2]
[378541419,1754908264940,-672.9,0.00021453,2]
[378541420,1754908264950,-803.3,0.00021453,2]
[378541421,1754908264961,-460.0,0.00021453,2]
[378541422,1754908264970,-460.0,0.00021453,2]
[378541423,1754908264980,-460.0,0.00021453,2]
[378541424,1754908264989,-460.0,0.00021453,2]
[378541425,1754908264998,-460.0,0.00021453,2]
[378541426,1754908265007,-504.32,0.00021453,2]
[378541427,1754908265017,-633.62,0.00021453,2]
[378541428,1754908265026,-601.47379124,0.00021453,2]
[378541429,1754908265035,-4092.66,0.00021453,2]
[378541430,1754908265044,-476.07,0.00021453,2]
[378541431,1754908265054,-956.54,0.00021453,2]
[378541432,1754908265063,-730.32,0.00021453,2]
[378541433,1754908265073,-460.0,0.00021453,2]
[378541434,1754908265083,-460.0,0.00021453,2]
[378541435,1754908265093,-1024.61,0.00021453,2]
[378541436,1754908265102,-465.12132,0.00021453,2]
[378541437,1754908265111,-1267.6,0.00021453,2]
[378541438,1754908265121,-460.0,0.00021463,2]
[378541439,1754908265130,-460.0,0.00021463,2]
[378541440,1754908265141,-460.0,0.00021463,2]
[378541441,1754908265150,-460.0,0.00021463,2]
[378541442,1754908265160,-460.0,0.00021463,2]
[378541443,1754908265169,-460.0,0.00021463,2]
[378541444,1754908265179,-403.27757068,0.00021463,2]
[378541445,1754908265188,-460.0,0.00021463,2]
[378541446,1754908265197,-460.0,0.00021463,2]
[378541447,1754908265207,-460.0,0.00021463,2]
[378541448,1754908265217,-460.0,0.00021463,2]
[378541449,1754908265228,-460.0,0.00021463,2]
[378541450,1754908265237,-460.0,0.00021463,2]
[378541451,1754908265246,-461.25,0.00021463,2]
[378541452,1754908265256,-460.0,0.00021463,2]
[378541453,1754908265267,-460.0,0.00021463,2]
[378541454,1754908265277,-460.0,0.00021463,2]
[378541455,1754908265286,-460.0,0.00021463,2]
[378541456,1754908265296,-460.0,0.00021463,2]
[378541457,1754908265305,-460.0,0.00021463,2]
[378541458,1754908265315,-460.0,0.00021463,2]
[378541459,1754908265329,-460.0,0.00021463,2]
[378541460,1754908265338,-460.0,0.00021463,2]
[378541461,1754908265348,-460.0,0.00021463,2]
[378541462,1754908265358,-460.0,0.00021463,2]
[378541463,1754908265367,-460.0,0.00021463,2]
[378541464,1754908265492,-463.85440603,0.00021463,2]
[378541465,1754908265502,-460.0,0.00021463,2]
[378541466,1754908265513,-460.0,0.00021463,2]
[378541467,1754908265522,-460.0,0.00021463,2]
[378541468,1754908265536,-460.0,0.00021463,2]
[378541469,1754908265545,-460.0,0.00021463,2]
[378541470,1754908265555,-460.0,0.00021463,2]
[378541471,1754908265564,-460.0,0.00021463,2]
[378541472,1754908265574,-467.17370748,0.00021463,2]
[378541473,1754908265583,-460.0,0.00021463,2]
[378541474,1754908265593,-460.0,0.00021463,2]
[378541475,1754908265602,-237.24863844,0.00021463,2]
[378541476,1754908265611,-460.0,0.00021463,2]
[378541477,1754908265620,-460.0,0.00021463,2]
[378541478,1754908265630,-460.0,0.00021463,2]
[378541479,1754908265641,-460.0,0.00021463,2]
[378541480,1754908265650,-460.0,0.00021463,2]
[378541481,1754908265660,-474.13724685,0.00021463,2]
[378541482,1754908265670,-460.0,0.00021463,2]
[378541483,1754908265679,-460.0,0.00021463,2]
[378541484,1754908265689,-460.0,0.00021463,2]
[378541485,1754908265698,-467.39990837,0.00021463,2]
[378541486,1754908265708,-460.0,0.00021463,2]
[378541487,1754908265719,-460.0,0.00021463,2]
[378541488,1754908265728,-460.0,0.00021463,2]
[378541489,1754908265738,-460.0,0.00021463,2]
[378541490,1754908265748,-460.0,0.00021463,2]
[378541491,1754908265757,-460.0,0.00021463,2]
[378541492,1754908265766,-460.0,0.00021463,2]
[378541493,1754908265775,-460.0,0.00021463,2]
[378541494,1754908265785,-460.0,0.00021463,2]
[378541495,1754908265794,-460.0,0.00021463,2]
[378541496,1754908265804,-460.0,0.00021463,2]
[378541497,1754908265813,-460.0,0.00021463,2]
[378541498,1754908265823,-460.0,0.00021463,2]
[378541499,1754908265832,-460.0,0.00021463,2]
[378541500,1754908265842,-460.0,0.00021463,2]
[378541501,1754908265851,-460.0,0.00021463,2]
[378541502,1754908265861,-460.0,0.00021463,2]
[378541503,1754908265871,-460.0,0.00021463,2]
[378541504,1754908265881,-460.0,0.00021463,2]
[378541505,1754908265890,-460.0,0.00021463,2]
[378541506,1754908265900,-460.0,0.00021463,2]
[378541507,1754908265910,-460.0,0.00021463,2]
[378541508,1754908265920,-448.54880574,0.00021463,2]
[378541509,1754908265929,-460.0,0.00021463,2]
[378541510,1754908265939,-460.0,0.00021463,2]
[378541511,1754908265949,-460.0,0.00021463,2]
[378541512,1754908265959,-460.0,0.00021463,2]
[378541513,1754908265969,-625.55,0.00021463,2]
[378541514,1754908265979,-460.0,0.00021463,2]
[378541515,1754908265990,-1343.95,0.00021463,2]
[378541516,1754908266000,-898.78,0.00021463,2]
[378541517,1754908266009,-557.77228213,0.00021463,2]
[378541518,1754908266019,-460.0,0.00021463,2]
[378541519,1754908266028,-460.0,0.00021463,2]
[378541520,1754908266038,-1255.29,0.00021463,2]
[378541521,1754908266048,-460.0,0.00021463,2]
[378541522,1754908266058,-1066.45,0.00021463,2]
[378541523,1754908266068,-460.0,0.00021463,2]
[378541524,1754908266078,-528.69,0.00021463,2]
[378541525,1754908266088,-460.0,0.00021463,2]
[378541526,1754908266098,-460.0,0.00021463,2]
[378541527,1754908266108,-268.9665239,0.00021463,2]
[378541528,1754908266118,-460.0,0.00021463,2]
[378541529,1754908266128,-460.0,0.00021463,2]
[378541530,1754908266145,-460.0,0.00021463,2]
[378541531,1754908266156,-460.0,0.00021463,2]
[378541532,1754908266167,-771.15,0.00021463,2]
[378541533,1754908266178,-460.0,0.00021463,2]
[378541534,1754908266189,-2043.63,0.00021463,2]
[378541535,1754908266200,-460.0,0.00021463,2]
[378541536,1754908266210,-460.0,0.00021463,2]
[378541537,1754908266222,-460.0,0.00021463,2]
[378541538,1754908266232,-1204.15,0.00021463,2]
[378541539,1754908266242,-460.0,0.00021463,2]
[378541540,1754908266252,-460.0,0.00021463,2]
[378541541,1754908266262,-199.46177303,0.00021463,2]
[378541542,1754908266272,-460.0,0.00021463,2]
[378541543,1754908266281,-460.0,0.00021463,2]
[378541544,1754908266291,-460.0,0.00021463,2]
[378541545,1754908266300,-460.0,0.00021463,2]